bitfinex/quotes_BTCUSD_20241024
["timestamp","ask_amount","ask_price","bid_price","bid_amount"]
[1729736193231,0.21889,67289.0,67288.0,0.00165]
[1729736193588,0.54039381,67289.0,67288.0,0.00165]
[1729736194310,0.58490925,67289.0,67288.0,0.00165]
[1729736194686,0.54039381,67289.0,67288.0,0.00165]
[1729736195682,0.58489582,67289.0,67288.0,0.00165]
[1729736196466,0.73240372,67289.0,67288.0,0.00165]
[1729736197257,0.73440372,67289.0,67288.0,0.00165]
[1729736197869,0.73240372,67289.0,67288.0,0.00165]
[1729736198330,0.68790171,67289.0,67288.0,0.00165]
[1729736198565,0.54039381,67289.0,67288.0,0.00165]
[1729736199025,0.38989,67289.0,67288.0,0.00165]
[1729736200881,0.54039381,67289.0,67288.0,0.00165]
[1729736201322,0.54239381,67289.0,67288.0,0.00165]
[1729736201565,0.54039381,67289.0,67288.0,0.00165]
[1729736201975,0.6276395,67289.0,67288.0,0.00165]
[1729736202764,0.6326395,67289.0,67288.0,0.00165]
[1729736205238,0.54539381,67289.0,67288.0,0.00165]
[1729736209438,0.000825,67291.0,67290.0,0.005]
[1729736210388,0.000825,67291.0,67290.0,0.04610855]
[1729736210591,0.000825,67291.0,67290.0,0.005]
[1729736211151,0.000825,67291.0,67290.0,0.04610736]
[1729736211393,0.000825,67291.0,67290.0,0.005]
[1729736211594,0.000825,67291.0,67290.0,0.04610736]
[1729736211755,0.000825,67291.0,67290.0,0.005]
[1729736211956,0.000825,67291.0,67290.0,0.04610736]
[1729736215751,0.119711,67291.0,67290.0,0.04610736]
[1729736215949,0.25558574,67291.0,67290.0,0.005]
[1729736216866,0.119711,67291.0,67290.0,0.005]
[1729736217047,0.000825,67291.0,67290.0,0.005]
[1729736217462,0.000825,67291.0,67290.0,0.04610736]
[1729736218829,0.000825,67291.0,67290.0,0.05110736]
[1729736224319,0.119711,67291.0,67290.0,0.04610736]
[1729736224640,0.000825,67291.0,67290.0,0.005]
[1729736226675,0.119711,67291.0,67290.0,0.005]
[1729736227018,0.000825,67291.0,67290.0,0.005]
[1729736227433,0.119711,67291.0,67290.0,0.005]
[1729736228068,0.000825,67291.0,67290.0,0.005]
[1729736228472,0.000825,67291.0,67290.0,0.04592394]
[1729736229567,0.000825,67291.0,67290.0,0.04757394]
[1729736230167,0.000825,67291.0,67290.0,0.20307775]
[1729736230390,0.000825,67291.0,67290.0,0.20604958]
[1729736230568,0.000825,67291.0,67290.0,0.32493758]
[1729736230774,0.000825,67291.0,67290.0,0.40286575]
[1729736231405,0.000825,67291.0,67290.0,0.41486575]
[1729736231616,0.000825,67291.0,67290.0,0.42416273]
[1729736231908,0.000825,67291.0,67290.0,0.41286575]
[1729736232131,0.000825,67291.0,67290.0,0.42416273]
[1729736232335,0.000825,67291.0,67290.0,0.41486575]
[1729736232537,0.000825,67291.0,67290.0,0.42216273]
[1729736233878,0.000825,67291.0,67290.0,0.42565168]
[1729736234282,0.000825,67291.0,67290.0,0.42416273]
[1729736234874,0.000825,67291.0,67290.0,0.42216273]
[1729736236194,0.000825,67291.0,67290.0,0.41286575]
[1729736236395,0.000825,67291.0,67290.0,0.42216143]
[1729736236604,0.000825,67291.0,67290.0,0.41286575]
[1729736237205,0.000825,67291.0,67290.0,0.33196575]
[1729736237766,0.000825,67291.0,67290.0,0.34126148]
[1729736238082,0.000825,67291.0,67290.0,0.33196575]
[1729736242222,0.000825,67291.0,67290.0,0.75614049]
[1729736242426,0.00025,67295.0,67294.0,0.48065574]
[1729736242629,0.00025,67295.0,67294.0,0.63115955]
[1729736242800,0.001684,67302.0,67301.0,0.163868]
[1729736242986,0.34250062,67325.0,67301.0,0.163868]
[1729736242987,0.22590157,67325.0,67306.0,0.14086]
[1729736243205,0.22590157,67325.0,67306.0,0.45023855]
[1729736243435,0.22590157,67325.0,67306.0,0.49097342]
[1729736243856,0.22590157,67325.0,67306.0,1.03669342]
[1729736246464,0.22367362,67325.0,67306.0,1.03669342]
[1729736247281,0.22367362,67325.0,67306.0,1.01169342]
[1729736247526,0.118834,67321.0,67306.0,1.01169342]
[1729736247746,0.00222801,67323.0,67306.0,1.01169342]
[1729736247747,0.120521,67319.0,67306.0,1.01169342]
[1729736247951,0.118839,67318.0,67306.0,1.01169342]
[1729736249787,0.001684,67319.0,67306.0,0.87581868]
[1729736249788,0.239359,67319.0,67306.0,0.87581868]
[1729736249990,0.118847,67314.0,67306.0,0.87581868]
[1729736250393,0.63855962,67316.0,67306.0,0.87581868]
[1729736251085,0.1772,67316.0,67306.0,0.87581868]
[1729736251251,0.296043,67316.0,67306.0,0.87581868]
[1729736251453,0.118844,67315.0,67306.0,0.87581868]
[1729736252922,0.1772,67316.0,67306.0,0.87581868]
[1729736252923,0.414886,67316.0,67306.0,0.87581868]
[1729736253585,0.000915,67307.0,67306.0,0.87581868]
[1729736255363,0.000915,67307.0,67306.0,0.65195868]
[1729736255622,0.000915,67307.0,67306.0,0.49145487]
[1729736256017,0.200173,67307.0,67306.0,0.49145487]
[1729736256224,0.178115,67307.0,67306.0,0.49645487]
[1729736257660,0.178115,67307.0,67306.0,0.49145487]
[1729736258117,0.43284774,67307.0,67306.0,0.49145487]
[1729736258519,0.43284774,67307.0,67306.0,0.44572]
[1729736258898,0.43284774,67307.0,67306.0,0.49125967]
[1729736259102,0.43284774,67307.0,67306.0,0.48625967]
[1729736259305,0.43284774,67307.0,67306.0,0.49125967]
[1729736259994,0.296973,67307.0,67306.0,0.49125967]
[1729736260406,0.43284774,67307.0,67306.0,0.49125967]
[1729736261951,0.43284774,67307.0,67306.0,0.48625967]
[1729736267819,0.71922629,67307.0,67306.0,0.48625967]
[1729736268569,0.58335155,67307.0,67306.0,0.48625967]
[1729736268755,0.58335155,67307.0,67306.0,0.44572]
[1729736269128,0.58335155,67307.0,67306.0,0.47974351]
[1729736271043,0.71922629,67307.0,67306.0,0.47974351]
[1729736271249,0.58335155,67307.0,67306.0,0.47974351]
[1729736272725,0.71922629,67307.0,67306.0,0.47974351]
[1729736273636,0.58335155,67307.0,67306.0,0.47974351]
[1729736273862,0.71922629,67307.0,67306.0,0.47974351]
[1729736275297,0.58335155,67307.0,67306.0,0.47974351]
[1729736275745,0.71922629,67307.0,67306.0,0.47974351]
[1729736276208,0.82922629,67307.0,67306.0,0.06749277]
[1729736276473,0.415452,67297.0,67291.0,0.0001001]
[1729736276722,0.25475874,67292.0,67291.0,0.0001001]
[1729736276984,0.43245874,67292.0,67291.0,0.0001001]
[1729736277205,0.53445874,67292.0,67291.0,0.0001001]
[1729736277429,0.53245874,67292.0,67291.0,0.0001001]
[1729736277676,0.53445874,67292.0,67291.0,0.0001001]
[1729736277915,0.68496255,67292.0,67291.0,0.0001001]
[1729736278130,0.80895894,67292.0,67291.0,0.0001001]
[1729736278609,0.68296255,67292.0,67291.0,0.0001001]
[1729736278616,0.82883729,67292.0,67291.0,0.0001001]
[1729736278859,0.398586,67291.0,67289.0,0.0001001]
[1729736279092,0.68496455,67291.0,67289.0,0.0001001]
[1729736279299,0.65635568,67291.0,67289.0,0.0001001]
[1729736279503,0.65435568,67291.0,67289.0,0.0001001]
[1729736280127,0.65635568,67291.0,67289.0,0.0001001]
[1729736280330,0.296613,67276.0,67275.0,0.22367362]
[1729736280528,0.43248774,67276.0,67275.0,0.22367362]
[1729736280956,0.118921,67271.0,67270.0,0.005]
[1729736281164,0.25479574,67271.0,67270.0,0.005]
[1729736281388,0.118925,67269.0,67268.0,0.005]
[1729736281628,0.296625,67269.0,67268.0,0.005]
[1729736282878,0.237854,67268.0,67263.0,0.005]
[1729736283097,0.237854,67268.0,67256.0,0.00465107]
[1729736283098,0.356812,67262.0,67256.0,0.00465107]
[1729736283307,0.356812,67262.0,67255.0,0.03284231]
[1729736283308,0.237885,67260.0,67257.0,0.00965111]
[1729736283515,0.356826,67260.0,67259.0,0.005]
[1729736284146,0.438626,67260.0,67259.0,0.005]
[1729736284351,0.534526,67260.0,67259.0,0.005]
[1729736284553,0.53675611,67260.0,67259.0,0.005]
[1729736285378,0.53675611,67260.0,67256.0,0.005]
[1729736285379,0.118946,67257.0,67256.0,0.005]
[1729736285583,0.25482074,67257.0,67256.0,0.00965128]
[1729736285785,0.25482074,67257.0,67256.0,0.005]
[1729736286703,0.118953,67253.0,67252.0,0.005]
[1729736286928,0.33662974,67252.0,67251.0,0.000825]
[1729736287136,0.53756371,67252.0,67251.0,0.000825]
[1729736287359,0.58303355,67252.0,67251.0,0.000825]
[1729736296673,0.58303355,67252.0,67251.0,0.0054772]
[1729736296674,0.296655,67252.0,67251.0,0.0054772]
[1729736299271,0.296655,67252.0,67251.0,0.00547701]
[1729736300267,0.296655,67252.0,67251.0,0.000825]
[1729736300472,0.296655,67252.0,67251.0,0.005477]
[1729736301528,0.118955,67252.0,67251.0,0.005477]
[1729736302380,0.118955,67252.0,67251.0,0.01478091]
[1729736302577,0.22117111,67260.0,67259.0,0.005]
[1729736303076,0.22117111,67260.0,67259.0,0.01895456]
[1729736303077,0.12117111,67260.0,67259.0,0.01895456]
[1729736303286,0.12117111,67260.0,67259.0,0.01895402]
[1729736306590,0.12117111,67260.0,67259.0,0.01895391]
[1729736307464,0.12117111,67260.0,67259.0,0.01395391]
[1729736307708,0.12117111,67260.0,67259.0,0.01895391]
[1729736307914,0.12117111,67260.0,67259.0,0.01395391]
[1729736308462,0.21297111,67260.0,67259.0,0.01395391]
[1729736308667,0.29407111,67260.0,67259.0,0.01395391]
[1729736309155,0.29407111,67260.0,67259.0,0.01395523]
[1729736309587,0.29407111,67260.0,67259.0,0.0046513]
[1729736309757,0.58044966,67260.0,67259.0,0.0046513]
[1729736310003,0.41114355,67260.0,67251.0,0.000825]
[1729736310214,0.25482974,67252.0,67251.0,0.000825]
[1729736310355,0.42772974,67252.0,67251.0,0.01478169]
[1729736310784,0.57823355,67252.0,67251.0,0.01478169]
[1729736313364,0.57823355,67252.0,67251.0,0.000825]
[1729736313599,0.57823355,67252.0,67251.0,0.0197823]
[1729736313600,0.118955,67252.0,67251.0,0.0197823]
[1729736313790,0.356829,67259.0,67258.0,0.005]
[1729736313939,0.356829,67259.0,67258.0,0.01895582]
[1729736314358,0.00223011,67260.0,67259.0,0.005]
[1729736314535,0.00223011,67260.0,67259.0,0.04809429]
[1729736315322,0.00223011,67260.0,67259.0,0.04344075]
[1729736315523,0.00223011,67260.0,67259.0,0.04344014]
[1729736317769,0.0918,67278.0,67272.0,0.005]
[1729736317971,0.22367362,67282.0,67272.0,0.01430107]
[1729736317972,0.34259162,67273.0,67272.0,0.01430107]
[1729736318171,0.00222965,67274.0,67273.0,0.005]
[1729736318424,0.00222965,67274.0,67273.0,0.04343954]
[1729736320589,0.00222965,67274.0,67273.0,0.04343825]
[1729736320796,0.12114565,67274.0,67273.0,0.04343825]
[1729736321024,0.12114565,67274.0,67273.0,0.01429978]
[1729736321221,0.00222965,67274.0,67273.0,0.01429978]
[1729736321451,0.00222965,67274.0,67273.0,0.04327617]
[1729736321647,0.12114565,67274.0,67273.0,0.01429978]
[1729736321853,0.00222965,67274.0,67273.0,0.04327617]
[1729736322117,0.12114565,67274.0,67273.0,0.01429978]
[1729736322332,0.12114565,67274.0,67273.0,0.04327617]
[1729736322489,0.12114565,67274.0,67273.0,0.01429978]
[1729736322746,0.12114565,67274.0,67273.0,0.005]
[1729736328399,0.237811,67281.0,67280.0,0.005]
[1729736328768,0.237811,67281.0,67269.0,0.005]
[1729736328769,0.1189,67284.0,67283.0,0.005]
[1729736330212,0.12112961,67284.0,67283.0,0.005]
[1729736331200,0.12112961,67284.0,67273.0,0.22367362]
[1729736331201,0.237801,67283.0,67282.0,0.005]
[1729736331416,0.118913,67276.0,67273.0,0.22367362]
[1729736331671,0.118913,67276.0,67274.0,0.17930971]
[1729736331871,0.118913,67276.0,67275.0,0.005]
[1729736332509,0.118913,67276.0,67275.0,0.0338059]
[1729736332921,0.22367362,67282.0,67276.0,0.005]
[1729736332922,0.118913,67277.0,67276.0,0.005]
[1729736335400,0.118904,67281.0,67279.0,0.005]
[1729736335618,0.34257562,67282.0,67281.0,0.005]
[1729736335991,0.34257562,67282.0,67276.0,0.005]
[1729736335992,0.118911,67277.0,67276.0,0.005]
[1729736336607,0.118911,67277.0,67265.0,0.22367362]
[1729736336608,0.23783,67275.0,67272.0,0.005]
[1729736336825,0.118918,67273.0,67272.0,0.005]
[1729736341519,0.237814,67280.0,67279.0,0.005]
[1729736341726,0.35672,67280.0,67279.0,0.005]
[1729736344179,0.118902,67282.0,67279.0,0.005]
[1729736344398,0.118902,67282.0,67272.0,0.005]
[1729736344399,0.12112761,67284.0,67283.0,0.005]
[1729736347274,0.12112761,67284.0,67283.0,0.01429868]
[1729736348029,0.12112761,67284.0,67283.0,0.005]
[1729736349391,0.12112761,67284.0,67283.0,0.01429885]
[1729736349595,0.12112761,67284.0,67283.0,0.01429871]
[1729736350602,0.12112761,67284.0,67283.0,0.01429861]
[1729736350816,0.12112761,67284.0,67283.0,0.005]
[1729736351685,0.118898,67284.0,67283.0,0.005]
[1729736353170,0.356676,67288.0,67287.0,0.005]
[1729736353581,0.356676,67288.0,67287.0,0.03369977]
[1729736353732,0.356676,67288.0,67287.0,0.005]
[1729736354603,0.00305416,67289.0,67288.0,0.005]
[1729736355006,0.00305416,67289.0,67288.0,0.28869245]
[1729736355210,0.00305416,67289.0,67288.0,0.31738559]
[1729736355758,0.000825,67289.0,67288.0,0.31738559]
[1729736355964,0.000825,67289.0,67288.0,0.31738485]
[1729736356486,0.000825,67289.0,67288.0,0.31738483]
[1729736357741,0.000825,67289.0,67288.0,0.19849383]
[1729736358746,0.000825,67289.0,67288.0,0.31738483]
[1729736364672,0.000825,67289.0,67288.0,0.40258483]
[1729736364883,0.000825,67289.0,67288.0,0.40407329]
[1729736365089,0.000825,67289.0,67288.0,0.40258483]
[1729736366031,0.000825,67289.0,67288.0,0.40458483]
[1729736366271,0.000825,67289.0,67288.0,0.40258483]
[1729736366963,0.000825,67289.0,67288.0,0.42558483]
[1729736367425,0.000825,67289.0,67288.0,0.40258483]
[1729736371295,0.000825,67289.0,67288.0,0.40407289]
[1729736371471,0.000825,67289.0,67288.0,0.40258483]
[1729736372311,0.000825,67289.0,67288.0,0.40407323]
[1729736372531,0.000825,67289.0,67288.0,0.40258483]
[1729736372942,0.000825,67289.0,67288.0,0.40407323]
[1729736373335,0.000825,67289.0,67288.0,0.40258483]
[1729736373536,0.000825,67289.0,67288.0,0.40458483]
[1729736373747,0.000825,67289.0,67288.0,0.50607323]
[1729736373956,0.000825,67289.0,67288.0,0.49528795]
[1729736374162,0.000825,67289.0,67288.0,0.66508311]
[1729736374366,0.000825,67289.0,67288.0,0.60998345]
[1729736374811,0.000825,67289.0,67288.0,0.61198345]
[1729736375424,0.000825,67289.0,67288.0,0.6166311]
[1729736377300,0.000825,67289.0,67288.0,0.5322311]
[1729736377507,0.000825,67289.0,67288.0,0.5302311]
[1729736377717,0.000825,67289.0,67288.0,0.53223048]
[1729736377930,0.000825,67289.0,67288.0,0.51628795]
[1729736378144,0.000825,67289.0,67288.0,0.53223061]
[1729736384985,0.000825,67289.0,67288.0,0.53223031]
[1729736385198,0.000825,67289.0,67288.0,0.53388031]
[1729736385404,0.000825,67289.0,67288.0,0.45868031]
[1729736385616,0.000825,67289.0,67288.0,0.45668031]
[1729736388565,0.000825,67289.0,67288.0,0.45668063]
[1729736390343,0.000825,67289.0,67288.0,0.63045313]
[1729736390991,0.000825,67289.0,67288.0,0.63245313]
[1729736392128,0.22367362,67299.0,67298.0,0.128874]
[1729736392374,0.22367362,67299.0,67298.0,0.28402516]
[1729736392565,0.0969,67301.0,67300.0,0.12387]
[1729736392739,0.0969,67301.0,67300.0,0.28980741]
[1729736393357,0.0969,67301.0,67300.0,0.31813327]
[1729736393937,0.0969,67301.0,67300.0,0.31664172]
[1729736394143,0.0969,67301.0,67300.0,0.31813327]
[1729736394338,0.0969,67301.0,67300.0,0.31664172]
[1729736394539,0.0969,67301.0,67300.0,0.32164172]
[1729736395274,0.0782,67305.0,67304.0,0.01]
[1729736395484,0.22367362,67311.0,67306.0,0.12886]
[1729736395688,0.22367362,67311.0,67306.0,0.27936381]
[1729736395878,0.22367362,67311.0,67306.0,0.29330586]
[1729736396036,0.22367362,67311.0,67306.0,0.32163172]
[1729736396240,0.22367362,67311.0,67306.0,0.32906685]
[1729736396985,0.0831,67312.0,67306.0,0.32906685]
[1729736397710,0.0831,67312.0,67306.0,0.33906685]
[1729736397890,0.0996,67316.0,67306.0,0.34106685]
[1729736398565,0.0996,67316.0,67306.0,0.33906685]
[1729736398739,0.0996,67316.0,67306.0,0.34106685]
[1729736399318,0.0996,67316.0,67306.0,0.34106382]
[1729736399517,0.0996,67316.0,67306.0,0.33906382]
[1729736399748,0.0996,67316.0,67306.0,0.31768967]
[1729736399967,0.0996,67316.0,67306.0,0.3390638]
[1729736400139,0.0996,67316.0,67306.0,0.3410638]
[1729736400719,0.0996,67316.0,67306.0,0.4410638]
[1729736401960,0.0996,67316.0,67306.0,0.41968967]
[1729736402150,0.0996,67316.0,67306.0,0.44106343]
[1729736402554,0.0996,67316.0,67306.0,0.46206343]
[1729736402749,0.0996,67316.0,67306.0,0.46406343]
[1729736404597,0.084015,67307.0,67306.0,0.21169078]
[1729736404805,0.183615,67307.0,67306.0,0.32906343]
[1729736405641,0.000915,67307.0,67306.0,0.41968967]
[1729736405855,0.000915,67307.0,67306.0,0.44106497]
[1729736406293,0.000915,67307.0,67306.0,0.46406497]
[1729736406699,0.000915,67307.0,67306.0,0.54846497]
[1729736406930,0.000915,67307.0,67306.0,0.63701347]
[1729736407202,0.22367362,67315.0,67306.0,0.63701347]
[1729736407203,0.22367362,67315.0,67314.0,0.140846]
[1729736407648,0.22367362,67315.0,67314.0,0.56945802]
[1729736407650,0.22367362,67315.0,67314.0,0.59762709]
[1729736407901,0.001684,67319.0,67314.0,0.59762709]
[1729736408129,0.001684,67319.0,67318.0,0.138838]
[1729736408362,0.093484,67319.0,67318.0,0.31071711]
[1729736408847,0.093484,67319.0,67318.0,0.33388618]
[1729736409058,0.093484,67319.0,67318.0,0.33888618]
[1729736409284,0.093484,67319.0,67318.0,0.33888319]
[1729736409497,0.093484,67319.0,67318.0,0.18867288]
[1729736409710,0.093484,67319.0,67318.0,0.21004592]
[1729736410797,0.170584,67319.0,67318.0,0.05454211]
[1729736411057,0.289421,67319.0,67318.0,0.04524948]
[1729736411291,0.289421,67319.0,67318.0,0.00964631]
[1729736411505,0.289421,67319.0,67318.0,0.00464631]
[1729736411711,0.289421,67319.0,67304.0,0.22367362]
[1729736411712,0.170584,67319.0,67316.0,0.005]
[1729736411960,0.22367362,67318.0,67317.0,0.00464723]
[1729736412192,0.118847,67313.0,67312.0,0.005]
[1729736412403,0.118847,67313.0,67312.0,0.00464756]
[1729736412613,0.287749,67312.0,67311.0,0.005]
[1729736412827,0.287751,67311.0,67310.0,0.005]
[1729736413029,0.195954,67309.0,67308.0,0.005]
[1729736413227,0.287754,67309.0,67308.0,0.00964776]
[1729736416714,0.287754,67309.0,67308.0,0.00464776]
[1729736416959,0.287768,67301.0,67300.0,0.005]
[1729736417185,0.287768,67301.0,67300.0,0.00964815]
[1729736418813,0.3746728,67301.0,67300.0,0.00964815]
[1729736419031,0.3746728,67301.0,67300.0,0.00464815]
[1729736419178,0.3746728,67301.0,67289.0,0.01094675]
[1729736419179,0.3746728,67301.0,67293.0,0.005]
[1729736419180,0.3427096,67301.0,67293.0,0.005]
[1729736419381,0.3746858,67294.0,67293.0,0.005]
[1729736419812,0.6124478,67294.0,67293.0,0.00464865]
[1729736420011,0.287788,67290.0,67289.0,0.00165]
[1729736420216,0.287788,67290.0,67289.0,0.00629901]
[1729736420417,0.287788,67290.0,67289.0,0.00665]
[1729736421018,0.287788,67290.0,67289.0,0.01129904]
[1729736421228,0.287788,67290.0,67289.0,0.01129906]
[1729736421635,0.287788,67290.0,67289.0,0.00665]
[1729736422231,0.287788,67290.0,67289.0,0.00165]
[1729736425527,0.287788,67290.0,67289.0,0.08625]
[1729736430102,0.43829181,67290.0,67289.0,0.08625]
[1729736430591,0.43829181,67290.0,67288.0,0.00165]
[1729736430592,0.30869,67289.0,67288.0,0.00165]
[1729736430806,0.45919381,67289.0,67288.0,0.00165]
[1729736431228,0.55919381,67289.0,67288.0,0.00165]
[1729736432479,0.60353338,67289.0,67288.0,0.00165]
[1729736432683,0.62653338,67289.0,67288.0,0.00165]
[1729736433788,0.62853338,67289.0,67288.0,0.00165]
[1729736433981,0.298718,67273.0,67272.0,0.00165]
[1729736438751,0.65124649,67273.0,67272.0,0.00165]
[1729736439895,0.55922181,67273.0,67272.0,0.00165]
[1729736445980,0.202018,67273.0,67272.0,0.00630103]
[1729736447201,0.2042479,67273.0,67272.0,0.00630103]
[1729736452055,0.2042479,67273.0,67272.0,0.00630055]
[1729736452631,0.1211479,67273.0,67272.0,0.00630055]
[1729736452830,0.1211479,67273.0,67272.0,0.01130055]
[1729736453060,0.0022299,67273.0,67272.0,0.01130055]
[1729736453293,0.1211479,67273.0,67272.0,0.01130055]
[1729736453490,0.1211479,67273.0,67272.0,0.01278679]
[1729736453778,0.1211479,67273.0,67272.0,0.01130055]
[1729736454023,0.118918,67274.0,67272.0,0.01130055]
[1729736454227,0.237824,67277.0,67273.0,0.00613743]
[1729736454399,0.118918,67273.0,67272.0,0.00665]
[1729736454604,0.118918,67273.0,67272.0,0.01130016]
[1729736461082,0.198618,67273.0,67272.0,0.01130016]
[1729736461490,0.198618,67273.0,67272.0,0.01130009]
[1729736462514,0.198618,67273.0,67272.0,0.01278956]
[1729736462731,0.118918,67273.0,67272.0,0.01278956]
[1729736462940,0.237813,67280.0,67278.0,0.005]
[1729736462941,0.0797,67279.0,67278.0,0.005]
[1729736463153,0.118898,67284.0,67283.0,0.005]
[1729736463373,0.118898,67284.0,67283.0,0.00965009]
[1729736463592,0.12112748,67284.0,67283.0,0.00965009]
[1729736464478,0.0958,67299.0,67289.0,0.005]
[1729736464684,0.118886,67291.0,67289.0,0.00965009]
[1729736464904,0.119713,67290.0,67289.0,0.04557086]
[1729736465121,0.119713,67290.0,67289.0,0.00964893]
[1729736465328,0.119713,67290.0,67289.0,0.00464893]
[1729736465552,0.119713,67290.0,67289.0,0.00964893]
[1729736465975,0.119713,67290.0,67289.0,0.04553632]
[1729736466092,0.119713,67290.0,67289.0,0.00964893]
[1729736466295,0.119713,67290.0,67289.0,0.04553632]
[1729736468614,0.119713,67290.0,67289.0,0.04553608]
[1729736469030,0.000825,67290.0,67289.0,0.04553608]
[1729736469244,0.000825,67290.0,67289.0,0.16442608]
[1729736469895,0.000825,67290.0,67289.0,0.45876875]
[1729736470120,0.000825,67290.0,67289.0,0.45579669]
[1729736475608,0.000825,67290.0,67289.0,0.451148]
[1729736475824,0.000825,67290.0,67289.0,0.45579584]
[1729736477692,0.000825,67290.0,67289.0,0.46579584]
[1729736477896,0.000825,67290.0,67289.0,0.66329584]
[1729736478236,0.000825,67290.0,67289.0,0.66129584]
[1729736479115,0.000825,67290.0,67289.0,0.656648]
[1729736479267,0.000825,67290.0,67289.0,0.66129552]
[1729736480113,0.000825,67290.0,67289.0,0.52542872]
[1729736480295,0.000825,67290.0,67289.0,0.66129552]
[1729736481443,0.000825,67290.0,67289.0,0.66129561]
[1729736481867,0.000825,67290.0,67289.0,0.66329561]
[1729736482069,0.000825,67290.0,67289.0,0.90426241]
[1729736482480,0.000825,67290.0,67289.0,0.76839561]
[1729736484954,0.22367362,67303.0,67302.0,0.439067]
[1729736485165,0.22367362,67303.0,67302.0,0.62368212]
[1729736485612,0.000825,67309.0,67308.0,0.128856]
[1729736485829,0.000825,67309.0,67308.0,0.42730866]
[1729736486206,0.000825,67309.0,67308.0,0.44469031]
[1729736486419,0.000825,67309.0,67308.0,0.45677088]
[1729736486850,0.000825,67309.0,67308.0,0.60106363]
[1729736487693,0.000825,67309.0,67308.0,0.59906363]
[1729736488525,0.000825,67309.0,67308.0,0.60106363]
[1729736488971,0.000825,67309.0,67308.0,0.59906363]
[1729736489182,0.000825,67309.0,67308.0,0.57606363]
[1729736489390,0.000825,67309.0,67308.0,0.44019683]
[1729736490238,0.000825,67309.0,67308.0,0.47301328]
[1729736491382,0.000825,67309.0,67308.0,0.47501328]
[1729736492059,0.000825,67309.0,67308.0,0.49801328]
[1729736492283,0.000825,67309.0,67308.0,0.67521328]
[1729736492495,1e-06,67309.0,67308.0,0.67521328]
[1729736492697,0.0825,67332.0,67318.0,0.240838]
[1729736492904,0.0825,67332.0,67318.0,0.57158193]
[1729736493060,0.0825,67332.0,67318.0,0.59889332]
[1729736493505,0.0825,67332.0,67318.0,0.59888817]
[1729736493898,0.22367362,67329.0,67318.0,0.59888817]
[1729736494138,0.22367362,67329.0,67318.0,0.77608817]
[1729736494282,0.22367362,67329.0,67318.0,0.91395497]
[1729736494505,0.22367362,67329.0,67318.0,0.77608817]
[1729736496170,0.22367362,67329.0,67318.0,0.77808817]
[1729736496577,0.22367362,67329.0,67318.0,0.77708817]
[1729736496788,0.22367362,67329.0,67318.0,0.77608817]
[1729736497026,0.22367362,67329.0,67318.0,0.77808817]
[1729736497832,0.22367362,67329.0,67318.0,0.59888817]
[1729736498696,0.22367362,67329.0,67318.0,0.73475497]
[1729736498904,0.22367362,67329.0,67318.0,0.60088817]
[1729736499099,0.22367362,67329.0,67318.0,0.59888817]
[1729736500238,0.22367362,67329.0,67318.0,0.59888775]
[1729736501134,0.22367362,67329.0,67318.0,0.48888775]
[1729736501340,0.22367362,67329.0,67318.0,0.62675455]
[1729736501518,0.22367362,67329.0,67318.0,0.63675455]
[1729736502076,0.22367362,67329.0,67318.0,0.71765455]
[1729736502505,0.22367362,67329.0,67318.0,0.81765455]
[1729736503763,0.0793,67334.0,67318.0,0.81765455]
[1729736503965,0.22367362,67338.0,67329.0,0.253819]
[1729736504168,0.0193781,67341.0,67340.0,0.01]
[1729736504373,0.001682,67357.0,67354.0,0.128775]
[1729736504513,0.001682,67357.0,67356.0,0.130771]
[1729736504713,0.32137362,67371.0,67366.0,0.005]
[1729736504923,0.32137362,67371.0,67366.0,0.14083067]
[1729736505274,0.32137362,67371.0,67366.0,0.17014206]
[1729736505485,0.22367362,67371.0,67366.0,0.17014206]
[1729736505702,0.0793,67372.0,67366.0,0.32064587]
[1729736507071,0.22367362,67371.0,67366.0,0.19689187]
[1729736507313,0.0793,67372.0,67366.0,0.31564587]
[1729736507487,0.0793,67372.0,67366.0,0.19689187]
[1729736507689,0.0793,67372.0,67366.0,0.31564587]
[1729736507892,0.0793,67372.0,67366.0,0.19689187]
[1729736507893,0.237494,67370.0,67366.0,0.19689187]
[1729736508096,0.237494,67370.0,67366.0,0.04638806]
[1729736508097,0.118751,67368.0,67366.0,0.04638806]
[1729736508670,0.237494,67370.0,67366.0,0.04638806]
[1729736509077,0.0793,67372.0,67366.0,0.04638806]
[1729736509078,0.118749,67369.0,67366.0,0.04638806]
[1729736510678,0.118749,67369.0,67366.0,0.04638361]
[1729736510876,0.120434,67367.0,67366.0,0.04638361]
[1729736511077,0.218134,67367.0,67366.0,0.04138361]
[1729736511294,0.218134,67367.0,67366.0,0.03395455]
[1729736511543,0.218134,67367.0,67366.0,0.00464316]
[1729736512264,0.297434,67367.0,67366.0,0.00464316]
[1729736514333,0.307434,67367.0,67366.0,0.00464316]
[1729736514548,0.295766,67359.0,67358.0,0.00165]
[1729736514748,0.295766,67359.0,67358.0,0.0424056]
[1729736514749,0.4316328,67359.0,67358.0,0.0424056]
[1729736514997,0.4316328,67359.0,67358.0,0.01372526]
[1729736515409,0.4316328,67359.0,67358.0,0.00629433]
[1729736515967,0.4416328,67359.0,67358.0,0.00629433]
[1729736516377,0.405766,67359.0,67358.0,0.00629433]
[1729736516582,0.405766,67359.0,67342.0,0.005]
[1729736516583,0.195787,67347.0,67342.0,0.005]
[1729736516785,0.3316538,67347.0,67346.0,0.25978599]
[1729736517241,0.3316538,67347.0,67346.0,0.03611237]
[1729736517613,0.3316538,67347.0,67346.0,0.00743199]
[1729736517614,0.195787,67347.0,67346.0,0.00743199]
[1729736518619,0.118798,67341.0,67340.0,0.005]
[1729736518801,0.118798,67341.0,67340.0,0.00743233]
[1729736519226,0.209198,67341.0,67340.0,0.00743233]
[1729736519424,0.286198,67341.0,67340.0,0.00743233]
[1729736521133,0.286198,67341.0,67340.0,0.03629129]
[1729736522449,0.286198,67341.0,67340.0,0.02885896]
[1729736522661,0.286198,67341.0,67337.0,0.005]
[1729736522662,0.118803,67338.0,67337.0,0.005]
[1729736522861,0.118803,67338.0,67337.0,0.0124328]
[1729736523077,0.077,67350.0,67337.0,0.16293661]
[1729736523244,0.077,67350.0,67349.0,0.005]